bitfinex-derivatives/quotes_ETHF0:USTF0_20250125
["timestamp","ask_amount","ask_price","bid_price","bid_amount"]
[1737810137934,0.48348,3309.8,3309.7,40.8]
[1737810138130,0.5019,3309.9,3309.7,40.8]
[1737810138328,0.98537,3309.9,3309.8,0.48348]
[1737810138725,0.5019,3309.9,3309.5,3.35639663]
[1737810138924,0.5019,3309.9,3309.6,40.8]
[1737810139124,0.48349,3309.7,3309.6,40.8]
[1737810139330,0.48354,3309.4,3309.3,0.0045359]
[1737810139730,0.48354,3309.4,3309.3,40.8045359]
[1737810140132,2.00324,3309.4,3309.3,40.8045359]
[1737810140426,6.01701447,3309.4,3309.3,0.0045359]
[1737810146841,9.22481447,3309.4,3309.3,0.0045359]
[1737810150543,9.22481447,3309.4,3309.3,0.4880859]
[1737810151139,8.21161447,3309.4,3309.3,0.4880859]
[1737810152245,3.2078,3309.4,3309.3,0.4880859]
[1737810152746,4.1809,3309.8,3309.3,0.0045359]
[1737810153239,4.1809,3309.8,3309.4,0.48354]
[1737810153440,4.3876914,3309.4,3309.3,0.0045359]
[1737810153743,7.5954914,3309.4,3309.3,0.0045359]
[1737810156939,3.69134,3309.4,3309.3,0.0045359]
[1737810157540,3.69134,3309.4,3309.3,0.4880859]
[1737810158747,3.2078,3309.4,3309.3,0.4880859]
[1737810159044,3.69134,3309.4,3309.3,0.4880859]
[1737810160235,3.69134,3309.4,3309.3,0.0045359]
[1737810160439,7.62562107,3309.4,3309.3,0.0045359]
[1737810165751,7.62562107,3309.4,3309.3,0.4880859]
[1737810167253,9.9434177,3309.4,3309.3,0.0045359]
[1737810170345,0.48366,3308.6,3308.5,1.0012]
[1737810170961,0.48366,3308.6,3308.5,0.5051]
[1737810172946,0.9656,3308.7,3308.2,1.0099359]
[1737810173152,0.4837,3308.4,3308.3,0.4829]
[1737810173861,0.4837,3308.4,3308.3,0.9666]
[1737810174356,0.4837,3308.4,3308.3,0.4829]
[1737810176761,0.48367,3308.5,3308.4,0.48368]
[1737810178158,3.85211817,3308.6,3308.4,0.48368]
[1737810178364,0.48367,3308.5,3308.4,0.4965]
[1737810179960,3.85211817,3308.6,3308.2,0.0045359]
[1737810180161,0.48367,3308.5,3308.4,0.488]
[1737810181559,0.4837,3308.3,3308.2,0.0045359]
[1737810181959,4.1846,3308.3,3308.2,0.0045359]
[1737810184160,3.6915,3308.3,3308.2,0.4882459]
[1737810184362,3.6915,3308.3,3308.2,0.0045359]
[1737810184566,3.2078,3308.3,3308.2,0.4882459]
[1737810185158,3.10989406,3308.3,3308.2,0.4882459]
[1737810185562,3.2078,3308.7,3308.6,0.48366]
[1737810185764,3.2078,3308.7,3308.6,41.28366]
[1737810186263,0.0045359,3308.9,3308.8,0.48363]
[1737810191161,0.4881459,3308.9,3308.8,0.48363]
[1737810191469,0.0045359,3308.9,3308.8,0.48363]
[1737810192861,0.0045359,3308.9,3308.8,3.16005137]
[1737810193067,3.2078,3309.4,3308.8,3.16005137]
[1737810193369,0.4835,3309.7,3309.5,0.48351]
[1737810193567,0.4835,3309.7,3309.6,0.4941]
[1737810194170,0.4835,3309.7,3309.6,0.97761]
[1737810194467,0.4835,3309.7,3309.6,0.4941]
[1737810194761,7.15370608,3309.8,3309.1,0.515]
[1737810194968,0.48356,3309.3,3309.1,1.49268]
[1737810196059,0.48356,3309.3,3309.2,0.48357]
[1737810197372,0.48356,3309.3,3309.1,0.4941]
[1737810197569,0.48356,3309.3,3309.2,0.48357]
[1737810197871,0.48357,3309.2,3309.1,0.4941]
[1737810198065,1.53357,3309.2,3309.1,0.4941]
[1737810200467,1.53357,3309.2,3309.1,0.97768]
[1737810200967,0.52,3309.5,3309.2,0.48357]
[1737810201169,0.52,3309.5,3309.1,0.4941]
[1737810201363,0.96272,3309.6,3309.4,0.48353]
[1737810201571,0.4792,3309.6,3309.5,0.48352]
[1737810201961,0.96271,3309.6,3309.5,0.48352]
[1737810202967,3.89280698,3309.4,3309.1,0.4941]
[1737810203163,0.99536,3309.3,3309.2,0.48356]
[1737810203363,0.99536,3309.3,3309.1,0.97768]
[1737810203566,0.99536,3309.3,3309.2,0.48357]
[1737810204471,3.89280698,3309.4,3309.1,0.4941]
[1737810204673,3.89280698,3309.4,3309.3,0.48355]
[1737810207274,0.48353,3309.5,3309.4,0.48353]
[1737810208478,0.4792,3309.6,3309.1,0.9843]
[1737810208668,0.96272,3309.6,3309.5,0.48352]
[1737810208973,0.96272,3309.6,3309.4,0.48353]
[1737810209375,0.96272,3309.6,3309.5,0.48352]
[1737810211371,0.5105,3309.8,3309.7,0.48349]
[1737810211674,3.2078,3309.9,3309.8,0.48348]
[1737810211869,3.2078,3309.9,3309.8,0.98208]
[1737810212063,3.2078,3309.9,3309.8,1.48058]
[1737810212469,3.2078,3309.9,3309.8,1.98558]
[1737810214765,3.1978,3309.9,3309.8,1.98558]
[1737810215365,0.48343,3310.2,3310.1,0.48344]
[1737810217180,3.2078,3310.3,3310.1,0.48344]
[1737810217382,3.69121,3310.3,3310.1,0.48344]
[1737810217772,0.48341,3310.3,3310.1,0.48344]
[1737810218577,0.48341,3310.3,3310.1,0.48343]
[1737810218876,1.5029,3310.4,3309.9,0.0045359]
[1737810219082,1.5029,3310.4,3310.3,0.48341]
[1737810219476,0.5044,3310.4,3310.3,0.48341]
[1737810219674,3.2078,3310.7,3310.0,2.31779663]
[1737810219876,3.6863,3310.7,3310.6,0.48336]
[1737810220276,0.4785,3310.7,3310.6,0.48336]
[1737810220886,0.96185,3310.7,3310.6,0.48336]
[1737810221182,0.48338,3310.5,3310.4,0.97349]
[1737810221377,0.48338,3310.5,3310.4,0.4901]
[1737810221678,0.48338,3310.5,3310.4,0.48339]
[1737810221884,0.48338,3310.5,3310.3,0.4834]
[1737810222278,0.48338,3310.5,3310.3,41.2834]
[1737810222483,0.48338,3310.5,3310.1,0.4901]
[1737810222678,0.48338,3310.5,3310.4,0.48339]
[1737810223285,0.48338,3310.5,3310.3,0.4834]
[1737810223877,0.48339,3310.4,3310.3,0.4834]
[1737810224078,0.48336,3310.6,3310.1,0.97353]
[1737810224279,0.52,3310.3,3310.1,0.97353]
[1737810224478,0.97972,3310.2,3310.1,0.97353]
[1737810224881,0.97972,3310.2,3310.1,0.4901]
[1737810225587,0.4963,3310.2,3310.1,0.97354]
[1737810225789,0.52,3310.3,3310.2,0.48342]
[1737810226085,3.95644227,3310.4,3310.3,0.48341]
[1737810226288,0.97969,3310.5,3310.1,0.4901]
[1737810227388,0.97969,3310.5,3310.3,0.4834]
[1737810231092,0.4963,3310.5,3310.4,0.48339]
[1737810231495,0.97968,3310.5,3310.4,0.48339]
[1737810231791,0.97968,3310.5,3310.3,0.4834]
[1737810233491,0.97968,3310.5,3310.1,41.2901]
[1737810233492,0.4963,3310.5,3310.4,0.48339]
[1737810234491,0.97968,3310.5,3310.4,0.48339]
[1737810234790,0.4963,3310.5,3310.4,0.48339]
[1737810234993,0.4785,3310.7,3310.6,0.48336]
[1737810235593,0.4785,3310.7,3310.3,2.31779663]
[1737810235892,0.4785,3310.7,3310.3,0.48341]
[1737810236092,0.48338,3310.5,3310.4,0.48339]
[1737810236593,0.48338,3310.5,3310.3,0.48339]
[1737810236996,0.48338,3310.5,3310.4,0.48339]
[1737810239589,0.4785,3310.7,3310.2,0.5236]
[1737810239898,0.4834,3310.4,3310.3,0.4834]
[1737810241796,4.35088307,3310.6,3310.1,41.2901]
[1737810242000,4.83425307,3310.6,3310.5,0.48338]
[1737810242592,0.48339,3310.5,3310.4,0.48338]
[1737810242792,4.35088307,3310.6,3310.1,41.2901]
[1737810242997,0.4785,3310.7,3310.6,0.48336]
[1737810248000,0.4914,3310.9,3310.8,0.48333]
[1737810248698,0.5248,3311.0,3310.9,0.48332]
[1737810250395,0.5248,3311.0,3310.5,0.4918]
[1737810250396,4.51794466,3311.0,3310.5,0.4918]
[1737810250603,0.48336,3310.7,3310.5,0.97516]
[1737810250902,0.4865,3310.6,3310.5,0.97516]
[1737810251104,0.99,3310.6,3310.5,0.97516]
[1737810251798,1.47336,3310.6,3310.5,0.97516]
[1737810252399,0.99,3310.6,3310.5,0.97516]
[1737810256505,0.99,3310.6,3310.5,0.96516]
[1737810257808,11.305276,3310.6,3309.8,3.2078]
[1737810258004,0.48343,3310.2,3310.1,0.48343]
[1737810258204,0.4923,3310.5,3309.8,3.2078]
[1737810258405,1.00515,3310.1,3310.0,0.48344]
[1737810259604,1.00514,3310.1,3310.0,0.48344]
[1737810260901,0.48345,3310.0,3309.9,0.0045359]
[1737810261108,0.96815,3310.0,3309.9,0.0045359]
[1737810261808,4.82154481,3310.0,3309.9,0.0045359]
[1737810262012,7.13934144,3310.0,3309.9,0.0045359]
[1737810262207,0.48352,3309.6,3309.4,0.48353]
[1737810262509,0.4777,3309.5,3309.4,0.48353]
[1737810263511,0.4777,3309.5,3309.1,44.0123359]
[1737810263711,0.98144,3309.4,3309.2,0.48356]
[1737810264306,0.4979,3309.4,3309.1,44.0123359]
[1737810264514,0.4979,3309.4,3309.3,0.48355]
[1737810264708,4.46212696,3309.5,3309.4,0.48354]
[1737810265404,0.4777,3309.5,3309.4,0.48354]
[1737810265817,0.4677,3309.5,3309.4,0.48354]
[1737810267317,0.95122,3309.5,3309.4,0.48354]
[1737810267618,0.4677,3309.5,3309.4,0.48354]
[1737810267916,0.95122,3309.5,3309.4,0.48354]
[1737810270216,0.4677,3309.5,3309.4,0.48354]
[1737810271020,0.95122,3309.5,3309.4,0.48354]
[1737810271521,0.4677,3309.5,3309.4,0.48354]
[1737810272322,0.48355,3309.4,3309.2,0.48356]
[1737810272517,0.48357,3309.2,3309.1,3.6959059]
[1737810272821,0.48356,3309.3,3309.1,3.6959059]
[1737810273018,0.5145,3309.2,3309.1,3.6959059]
[1737810273719,0.99807,3309.2,3309.1,3.6959059]
[1737810273918,0.5145,3309.2,3309.1,3.6959059]
[1737810274220,3.89480543,3309.3,3309.1,5.53013253]
[1737810274421,3.89480543,3309.3,3309.2,0.48357]
[1737810274618,3.89480543,3309.3,3309.2,0.96827]
[1737810281430,3.89480543,3309.3,3309.2,0.48357]
[1737810283029,3.89480543,3309.3,3309.1,3.2123359]
[1737810283229,0.98687,3309.2,3309.1,3.2123359]
[1737810294836,0.98687,3309.2,3309.1,0.0045359]
[1737810296037,0.98687,3309.2,3309.1,0.4881159]
[1737810296938,0.48357,3309.2,3309.1,0.4881159]
[1737810298030,0.5241,3309.4,3309.1,0.0045359]
[1737810298639,4.43282328,3309.3,3309.2,0.48356]
[1737810299744,0.48356,3309.3,3309.2,0.48357]
[1737810299949,0.48357,3309.2,3309.1,0.4881059]
[1737810300257,0.48357,3309.2,3309.1,0.0045359]
[1737810303450,0.48357,3309.2,3309.1,0.4881159]
[1737810308553,3.93902364,3309.3,3309.1,0.0045359]
[1737810308760,0.48351,3309.7,3309.5,0.48352]
[1737810308950,1.45587,3309.9,3309.8,0.48348]
[1737810309152,1.45587,3309.9,3309.7,0.48349]
[1737810309453,0.9724,3309.9,3309.2,4.2237]
[1737810309756,1.09664646,3309.6,3309.2,3.2078]
[1737810310059,0.48355,3309.3,3309.2,3.2078]
[1737810310457,4.4843813,3309.3,3309.2,3.2078]
[1737810311052,0.48355,3309.3,3309.2,3.2078]
[1737810311459,0.48355,3309.3,3309.2,0.5028]
[1737810313552,0.48355,3309.3,3309.2,0.98637]
[1737810313960,0.48355,3309.3,3309.2,0.5028]
[1737810314566,0.48355,3309.3,3309.2,0.98637]
[1737810315561,0.48357,3309.2,3309.1,0.0045359]
[1737810315867,0.48364,3308.8,3308.5,1.58030646]
[1737810316066,0.48361,3309.0,3308.6,1.35401823]
[1737810316267,1.00982,3308.9,3308.7,0.48363]
[1737810316470,1.53392,3308.9,3308.7,0.48363]
[1737810316668,0.48363,3308.8,3308.7,0.48363]
[1737810316863,0.48364,3308.7,3308.6,0.476]
[1737810317062,0.48366,3308.6,3308.5,0.0045359]
[1737810317264,1.58030646,3308.6,3308.5,0.0045359]
[1737810318062,0.48374,3308.1,3307.9,0.48375]
[1737810318272,0.502,3308.0,3307.9,0.48375]
[1737810318460,0.502,3308.0,3307.9,41.28375]
[1737810318665,0.502,3308.0,3307.9,42.38039646]
[1737810319172,0.4882459,3308.3,3308.1,0.48372]
[1737810319373,0.9902459,3308.3,3308.1,1.58036646]
[1737810319570,0.5065359,3308.3,3308.1,1.09664646]
[1737810319775,0.48372,3308.2,3307.8,41.3261]
[1737810319968,0.5065359,3308.3,3307.8,0.5261]
[1737810320172,0.48373,3308.1,3307.9,0.48375]
[1737810321369,4.40478807,3308.2,3307.8,0.5261]
[1737810321565,0.48374,3308.0,3307.8,1.00986]
[1737810321766,4.40478807,3308.2,3307.8,0.5261]
[1737810322069,3.2078,3308.1,3307.7,40.8]
[1737810322369,0.48374,3308.1,3307.9,0.48375]
[1737810322569,5.34678807,3308.2,3307.8,0.48377]
[1737810322570,5.83050807,3308.2,3307.8,0.48377]
[1737810322767,5.83050807,3308.2,3307.9,0.48374]
[1737810323072,5.83050807,3308.2,3308.0,0.48374]
[1737810323472,1.93982,3308.2,3308.1,0.5233]
[1737810323973,5.91192453,3308.2,3308.1,0.5233]
[1737810326471,0.4882359,3308.3,3308.1,0.5233]
[1737810326672,0.0045359,3308.3,3308.1,0.5233]
[1737810326872,0.4882359,3308.3,3308.2,0.4816]
[1737810327464,0.0045359,3308.3,3308.1,0.5233]
[1737810327668,0.48371,3308.2,3308.1,0.5233]
[1737810328069,4.39853177,3308.2,3308.1,0.5233]
[1737810328371,0.48371,3308.2,3308.1,0.5233]
[1737810328569,3.91935767,3308.3,3307.8,0.4756]
[1737810328772,0.48375,3308.0,3307.8,1.43807]
[1737810328971,0.48376,3307.9,3307.8,0.9543]
[1737810329873,0.4998,3308.0,3307.9,0.48376]
[1737810330070,0.96734,3308.1,3307.9,0.48376]
[1737810330871,3.98360987,3308.2,3308.1,0.48373]
[1737810332679,4.46731987,3308.2,3308.1,0.48373]
[1737810332980,0.48371,3308.2,3308.1,0.48373]
[1737810333679,0.4882459,3308.3,3308.2,0.48371]
[1737810333882,0.0045359,3308.3,3308.2,0.48371]
[1737810339084,0.0045359,3308.3,3307.8,2.16371]
[1737810339085,0.48372,3308.2,3308.1,0.48372]
[1737810339279,0.9927,3308.2,3307.8,0.9543]
[1737810339484,0.48376,3307.9,3307.8,0.96247]
[1737810340381,0.48376,3307.9,3307.8,0.4787]
[1737810340580,0.48377,3307.8,3307.7,3.69158]
[1737810340785,0.99507,3307.8,3307.7,3.69158]
[1737810341784,0.99507,3307.8,3307.7,3.2078]
[1737810344585,0.5113,3307.8,3307.7,3.69159]
[1737810344886,0.5113,3307.8,3307.7,3.2078]
[1737810345087,0.99507,3307.8,3307.7,3.2078]
[1737810345889,4.94308365,3307.8,3307.7,3.2078]
[1737810346289,5.88808365,3307.8,3307.7,3.2078]
[1737810346793,5.88808365,3307.8,3307.6,0.0045359]
[1737810346794,0.48379,3307.7,3307.6,0.0045359]
[1737810346993,0.97599,3307.7,3307.6,0.0045359]
[1737810348082,4.83274127,3307.7,3307.6,0.0045359]
[1737810352293,5.32284127,3307.7,3307.6,0.0045359]
[1737810353702,0.48387,3307.1,3307.0,0.48388]
[1737810354000,0.48387,3307.2,3307.0,0.48389]
[1737810354199,1.5091,3307.1,3307.0,0.48389]
[1737810355210,0.983,3307.1,3307.0,0.48389]
[1737810357708,0.983,3307.1,3306.9,0.5252]
[1737810357909,0.48392,3306.8,3306.7,44.4962659]
[1737810358503,0.48392,3306.8,3306.7,3.2123359]
[1737810358816,0.48392,3306.8,3306.7,3.6962659]
[1737810359617,0.48392,3306.8,3306.7,3.2123359]
[1737810360009,0.48392,3306.8,3306.7,3.6962659]
[1737810360208,0.48392,3306.8,3306.7,0.0045359]
[1737810361814,0.5222,3307.0,3306.9,0.4839]
[1737810362018,0.5222,3307.0,3306.9,41.2839]
[1737810363812,0.983,3307.1,3307.0,0.48389]
[1737810364016,1.46687,3307.1,3307.0,0.48389]
[1737810364312,1.46687,3307.1,3307.0,0.98759]
[1737810364910,1.46687,3307.1,3307.0,0.5037]
[1737810365516,1.46687,3307.1,3307.0,0.98759]
[1737810366713,1.46687,3307.1,3307.0,0.5037]
[1737810367109,0.48392,3306.8,3306.7,40.8045359]
[1737810367321,0.48392,3306.8,3306.7,0.0045359]
[1737810367615,3.69172,3306.8,3306.7,0.0045359]
[1737810367815,0.983,3307.1,3306.7,0.0045359]
[1737810367816,3.94880367,3307.1,3306.7,0.0045359]
[1737810368021,4.45690367,3307.1,3306.7,0.0045359]
[1737810368212,4.45690367,3307.1,3306.7,0.4884559]
[1737810368416,0.48392,3306.8,3306.7,0.0045359]
[1737810368811,3.69172,3306.8,3306.7,0.0045359]
[1737810369820,0.48401,3306.2,3306.1,3.2078]
[1737810370517,1.49901,3306.2,3306.1,3.2078]
[1737810370912,0.48405,3305.9,3305.8,40.8045359]
[1737810371323,0.48405,3305.9,3305.8,0.0045359]
[1737810371922,1.21015,3305.9,3304.9,0.5053]
[1737810372110,5.52598399,3305.6,3305.0,0.5165]
[1737810372316,0.48416,3305.2,3305.0,0.5165]
[1737810372719,0.4922,3305.1,3304.9,0.48418]
[1737810373016,0.4922,3305.1,3304.8,3.2078]
[1737810373213,0.4922,3305.1,3304.9,0.48419]
[1737810373615,0.4922,3305.1,3304.8,3.2078]
[1737810373817,0.4922,3305.1,3305.0,0.48418]
[1737810374118,0.97638,3305.1,3304.9,0.48419]
[1737810374324,0.97638,3305.1,3304.8,0.48421]
[1737810374525,0.97638,3305.1,3304.9,0.48418]
[1737810374821,0.4922,3305.1,3304.7,0.00302393]
[1737810375122,0.4922,3305.1,3305.0,0.48418]
[1737810376429,0.48414,3305.3,3305.2,0.48415]
[1737810376919,0.947,3305.4,3304.7,0.00302393]
[1737810377326,1.43113,3305.4,3305.2,0.48414]
[1737810377529,0.947,3305.4,3305.2,0.48414]
[1737810378229,0.947,3305.4,3305.3,40.8]
[1737810379131,4.1548,3305.4,3305.3,41.28414]
[1737810380633,4.1548,3305.4,3305.3,0.48414]
[1737810381835,4.1548,3305.4,3305.1,40.8]
[1737810382230,4.1548,3305.4,3305.2,0.48415]
[1737810382433,4.1548,3305.4,3305.1,40.8]
[1737810382831,4.1548,3305.4,3305.3,0.48414]
[1737810383131,4.1548,3305.4,3305.0,0.4857]
[1737810383329,3.8953769,3305.3,3305.2,0.48415]
[1737810384637,0.48417,3305.1,3304.9,0.48419]
[1737810384828,0.4791,3305.0,3304.9,0.48419]
[1737810386237,3.8953769,3305.3,3304.7,41.32102393]
[1737810386939,0.4957,3305.5,3304.7,41.32102393]
[1737810386940,3.724,3305.8,3304.9,5.52598399]
[1737810387132,3.724,3305.8,3305.7,0.48408]
[1737810387337,4.20806,3305.8,3305.7,0.48408]
[1737810387635,4.20806,3305.8,3305.2,0.9895]
[1737810387834,3.724,3305.8,3305.2,0.9895]
[1737810388134,3.724,3305.8,3305.7,0.48408]
[1737810388135,3.2078,3305.8,3305.7,0.48408]
[1737810388638,0.48409,3305.7,3305.5,0.4841]
[1737810389139,0.48409,3305.6,3305.2,0.9895]
[1737810389333,0.48411,3305.5,3305.4,0.48412]
[1737810389532,0.5201,3305.6,3305.2,0.9895]
[1737810389729,3.69187,3305.8,3305.3,0.48414]
[1737810389924,3.69187,3305.8,3305.7,0.48408]
[1737810390633,3.2078,3305.8,3305.7,0.48408]
[1737810395031,3.69186,3305.8,3305.7,0.48408]
[1737810395231,3.69186,3305.8,3305.6,0.48409]
[1737810395929,0.48411,3305.5,3305.2,0.9895]
[1737810396131,0.48411,3305.5,3305.3,0.48413]
[1737810396332,0.9718,3305.6,3305.5,0.48411]
[1737810397438,7.09827525,3305.8,3305.7,0.48408]
[1737810397743,7.09827525,3305.8,3305.2,3.30768399]
[1737810397744,7.09827525,3305.8,3305.6,0.48409]
[1737810398642,7.09827525,3305.8,3305.7,0.48408]
[1737810399144,3.2078,3305.8,3305.7,0.48408]
[1737810399534,0.0045359,3306.5,3306.2,0.48401]
[1737810399737,0.0045359,3306.5,3306.3,0.506]
[1737810399941,0.4885059,3306.5,3306.3,0.98999]
[1737810400241,0.0045359,3306.5,3306.4,0.48398]
[1737810403646,0.0045359,3306.5,3306.4,3.15952346]
[1737810404344,0.0045359,3306.5,3306.4,2.80216399]
[1737810405142,0.0045359,3306.5,3306.4,41.28398]
[1737810405543,0.0045359,3306.5,3306.4,0.48398]
[1737810406148,0.0045359,3306.5,3306.4,2.80216399]
[1737810406352,0.0045359,3306.5,3306.4,3.29936399]
[1737810410453,0.0045359,3306.5,3306.4,0.98118]
[1737810410852,0.0045359,3306.5,3306.4,0.48398]
[1737810414457,3.2078,3307.0,3306.4,2.80216399]
[1737810414663,3.2078,3307.0,3306.9,0.4839]
[1737810421269,3.69169,3307.0,3306.9,0.4839]
[1737810421965,3.2078,3307.0,3306.9,0.4839]
[1737810423463,0.48387,3307.2,3307.1,0.48387]
[1737810423464,3.69167,3307.2,3307.1,0.48387]
[1737810424562,3.2078,3307.2,3307.1,0.48387]
[1737810425355,0.0045359,3307.3,3307.2,0.48386]
[1737810427771,0.0045359,3307.3,3307.2,41.64138922]
[1737810428373,0.0045359,3307.3,3307.2,41.64138605]
[1737810428669,0.0045359,3307.3,3307.2,46.64138605]
[1737810428863,0.4838,3308.0,3307.9,0.48376]
[1737810429763,0.4838,3308.0,3307.9,1.00946]
[1737810430667,1.0361,3308.1,3308.0,0.48374]
[1737810432172,0.4838,3308.2,3308.1,0.48373]
[1737810432363,1.5096,3308.2,3308.1,0.48373]
[1737810434767,1.99331,3308.2,3307.8,3.2078]
[1737810435166,1.5096,3308.2,3307.8,3.2078]
[1737810435368,0.48376,3307.9,3307.8,3.2078]
[1737810436167,0.48376,3307.9,3307.8,3.69157]
[1737810436476,0.48376,3307.9,3307.7,0.48378]
[1737810436668,3.2078,3308.0,3307.7,0.48378]
[1737810436874,0.48376,3307.9,3307.7,0.48378]
[1737810438267,0.48378,3307.8,3307.6,0.4838]
[1737810438471,0.48378,3307.8,3307.4,3.2078]
[1737810438472,0.99879,3307.7,3307.5,0.48381]
[1737810438768,0.5081,3307.6,3307.5,0.48381]
[1737810438967,0.99191,3307.6,3307.5,0.48382]
[1737810439170,0.5081,3307.6,3307.5,0.48382]
[1737810441268,0.5081,3307.6,3307.5,0.99282]
[1737810442780,0.9949,3307.6,3307.5,0.48382]
[1737810444985,0.48382,3307.5,3307.3,0.48383]
[1737810445376,0.48382,3307.5,3307.4,0.48383]
[1737810446075,0.48382,3307.5,3307.1,40.8]
[1737810446076,0.48384,3307.4,3307.2,0.48386]
[1737810446278,5.01413815,3307.6,3307.1,0.48387]
[1737810446580,5.01413815,3307.6,3307.2,0.48386]
[1737810446581,0.48385,3307.3,3307.2,0.48386]
[1737810446778,0.48384,3307.4,3307.3,0.48385]
[1737810447174,5.01413815,3307.6,3307.0,3.2078]
[1737810447374,0.48382,3307.5,3307.4,0.48383]
[1737810447979,5.01413815,3307.6,3307.5,0.48382]
[1737810449680,0.9949,3307.6,3307.5,0.48382]
[1737810449877,3.2078,3307.8,3307.7,0.48379]
[1737810450483,3.2078,3307.8,3307.7,41.28379]
[1737810450684,1.5072,3308.2,3308.1,0.48373]
[1737810453983,0.0045359,3308.3,3308.2,0.48371]
[1737810455381,0.0045359,3308.3,3308.2,0.95921]
[1737810456287,0.0045359,3308.3,3308.2,41.75921]
[1737810456487,0.0045359,3308.3,3308.2,0.95921]
[1737810456990,0.0045359,3308.3,3308.2,0.48371]
[1737810457574,0.0045359,3308.3,3308.0,0.4851]
[1737810457782,0.0045359,3308.3,3307.9,3.2078]
[1737810458090,0.48374,3308.0,3307.9,3.2078]
[1737810458489,2.80192399,3308.0,3307.9,3.2078]
[1737810459981,0.48383,3307.4,3307.3,3.2078]
[1737810460380,0.48388,3307.1,3306.9,0.5003]
[1737810460586,0.48389,3307.0,3306.9,0.5003]
[1737810461191,0.4891,3307.3,3306.7,3.2078]
[1737810461394,0.48392,3306.9,3306.7,3.2078]
[1737810461692,0.48392,3306.8,3306.7,3.2078]
[1737810466490,0.48393,3306.7,3306.6,0.0045359]
[1737810466682,4.72243,3306.7,3306.6,0.0045359]
[1737810468699,0.99513,3306.7,3306.6,0.0045359]
[1737810469395,0.99513,3306.7,3306.6,40.8045359]
[1737810469588,4.94597592,3306.7,3306.6,40.8045359]
[1737810469789,4.94597592,3306.7,3306.6,0.0045359]
[1737810475098,8.15377592,3306.7,3306.6,0.0045359]
[1737810475298,8.15377592,3306.7,3306.1,0.5182]
[1737810475299,0.48401,3306.2,3306.1,0.5182]
[1737810475697,3.2078,3306.3,3305.6,6.1918]
[1737810476000,0.48406,3305.9,3305.7,0.98357]
[1737810476205,0.48406,3305.9,3305.8,0.48406]
[1737810476394,0.48404,3306.0,3305.8,0.48406]
[1737810476592,0.48405,3305.9,3305.8,0.48406]
[1737810478498,0.48408,3305.8,3305.6,3.69188]
[1737810478690,0.48406,3305.9,3305.8,0.48406]
[1737810479089,0.48404,3306.0,3305.9,0.48405]
[1737810479692,0.4871359,3306.1,3305.6,44.0078]
[1737810479893,0.48404,3306.0,3305.9,0.48404]
[1737810480495,0.0045359,3306.1,3305.7,0.5123]
[1737810480696,0.48406,3305.8,3305.7,0.99637]
[1737810482003,0.4955,3306.0,3305.7,0.5123]
[1737810482191,0.48406,3305.9,3305.8,0.48406]
[1737810482694,0.48406,3305.8,3305.7,0.99637]
[1737810483695,4.4989434,3305.8,3305.7,0.5123]
[1737810486705,0.48409,3305.6,3305.5,0.0045359]
[1737810491314,0.48409,3305.6,3305.5,0.4886459]
[1737810497415,0.48409,3305.6,3305.5,0.0045359]
[1737810497616,0.48409,3305.6,3305.5,0.4886459]
[1737810499516,0.48409,3305.6,3305.5,0.0045359]
[1737810500517,3.7141,3305.9,3305.5,0.0045359]
[1737810500721,3.2078,3305.9,3305.5,0.0045359]
[1737810501027,3.69187,3305.9,3305.8,0.48406]
[1737810501413,0.48408,3305.8,3305.7,0.48407]
[1737810501614,0.48406,3305.8,3305.7,0.4985]
[1737810502224,3.2078,3305.9,3305.6,0.99668]
[1737810502417,0.48408,3305.7,3305.6,0.99668]
[1737810502918,0.48408,3305.7,3305.6,0.5126]
[1737810503116,0.48409,3305.6,3305.5,0.0045359]
[1737810503422,0.97079,3305.6,3305.5,0.0045359]
[1737810506328,0.96866811,3305.6,3305.5,0.0045359]
[1737810511833,0.96866811,3305.6,3305.5,0.36394568]
[1737810516940,0.48196811,3305.6,3305.5,0.36394568]
[1737810517143,0.48196811,3305.6,3305.5,0.36421266]
[1737810517439,0.48196811,3305.6,3305.5,0.36421248]
[1737810517836,0.48196811,3305.6,3305.5,0.84832248]
[1737810518035,0.48196811,3305.6,3305.5,0.36421248]
[1737810523344,0.48196811,3305.6,3305.5,0.36421659]
[1737810523644,0.48196811,3305.6,3305.5,0.36421647]
[1737810524145,0.48196811,3305.6,3305.5,0.0045359]
[1737810524644,0.48196811,3305.6,3305.5,0.36421918]
[1737810525646,0.48196811,3305.6,3305.5,0.0045359]
[1737810525840,0.48196811,3305.6,3305.5,0.36422821]
[1737810526036,0.99236811,3305.6,3305.5,0.36422821]
[1737810529535,0.99236811,3305.6,3305.5,0.0045359]
[1737810539651,4.8707049,3305.6,3305.5,0.0045359]
[1737810540648,5.23256926,3305.6,3305.5,0.0045359]
[1737810543656,4.72216926,3305.6,3305.5,0.0045359]
[1737810543857,0.36186436,3305.6,3305.5,1.4750459]
[1737810544157,4.79527854,3305.9,3305.5,1.4750459]
[1737810544158,0.48409,3305.7,3305.6,0.48409]
[1737810544353,0.48409,3305.7,3305.6,41.28409]
[1737810544657,0.48409,3305.7,3305.6,0.48409]
[1737810545052,3.69186,3305.9,3305.8,0.48406]
[1737810546152,3.2078,3305.9,3305.7,0.48407]
[1737810546354,3.69186,3305.9,3305.8,0.48406]
[1737810546847,3.2078,3305.9,3305.8,0.48406]
[1737810547557,3.2078,3305.9,3305.8,0.84314774]
[1737810548561,3.2078,3305.9,3305.8,0.48406]
[1737810548755,3.2078,3305.9,3305.8,0.84303181]
[1737810549463,3.2078,3305.9,3305.8,0.48406]
[1737810553262,0.48409,3305.7,3305.6,0.48409]
[1737810553462,0.48409,3305.7,3305.5,4.7156359]
[1737810553463,3.2078,3305.9,3305.5,0.9909359]